[Event "ESP-ch U1700 2024"]
[Site "Albacete"]
[Date "2024.08.27"]
[Round "1.1"]
[White "Ainsa Garus, Carlos"]
[Black "Zubizarreta Landera, Maddi"]
[Result "1-0"]
[ECO "A06"]
[WhiteElo "1577"]
[BlackElo "1699"]
[Annotator "NA RC COMBH"]
[PlyCount "119"]
[EventDate "2024.08.27"]
[EventType "swiss"]
[EventCountry "ESP"]
[SourceTitle "playchess.com"]
[Source "ChessBase"]
[SourceQuality "1"]
[TimeControl "5400+30"]

1. Nf3 {[%emt 0:00:02]} d5 {[%emt 0:00:22]} 2. b3 {[%emt 0:00:07]} Bf5 {[%emt 0:00:19]} 3. Bb2 {[%emt 0:00:17]} e6 {[%emt 0:00:54]} 4. g3 {[%emt 0:00:39]} Nd7 {[%emt 0:00:30]} 5. Bg2 {[%emt 0:00:13]} Ngf6 {[%emt 0:01:33]} 6. d3 {[%emt 0:01:15]} Bb4+ {[%emt 0:09:02]} 7. Nbd2 {[%emt 0:00:09]} c6 {[%emt 0:02:32]} 8. a3 {[%emt 0:00:51]} Bc5 {[%emt 0:06:22]} 9. O-O {[%emt 0:01:50]} a5 {[%emt 0:07:31]} 10. c4 {[%emt 0:01:52]} O-O {[%emt 0:03:30]} 11. Nh4 {[%emt 0:00:34]} Qc7 {[%emt 0:09:02]} 12. Rc1 {[%emt 0:03:03]} Qb6 {[%emt 0:04:53]} 13. Nxf5 {[%emt 0:00:36]} exf5 {[%emt 0:04:47]} 14. cxd5 {[%emt 0:01:00]} Nxd5 {[%emt 0:13:14]} 15. Rc4 {[%emt 0:07:01]} N7f6 {[%emt 0:09:16]} 16. Bh3 {[%emt 0:08:09]} f4 {[%emt 0:05:19]} 17. Ne4 {[%emt 0:16:00]} Bxf2+ {[%emt 0:06:24]} 18. Rxf2 {[%emt 0:04:14]} Ne3 {[%emt 0:03:26]} 19. Qa1 {[%emt 0:00:35]} Nxc4 {[%emt 0:04:05]} 20. Nxf6+ {[%emt 0:03:30]} gxf6 {[%emt 0:00:07]} 21. bxc4 {[%emt 0:00:41]} fxg3 {[%emt 0:00:16]} 22. hxg3 {[%emt 0:01:07]} Qe3 {[%emt 0:04:30]} 23. Kg2 {[%emt 0:00:55]} Rfd8 {[%emt 0:01:34]} 24. Bxf6 {[%emt 0:00:37]} Rd6 {[%emt 0:00:23]} 25. Bg4 {[%emt 0:05:44]} b5 {[%emt 0:01:23]} 26. Rf5 {[%emt 0:02:45]} h6 {[%emt 0:01:25]} 27. Re5 {[%emt 0:02:16]} Qa7 {[%emt 0:00:46]} 28. Re7 {[%emt 0:03:11]} Qb8 {[%emt 0:00:24]} 29. Be5 {[%emt 0:01:18]} Qd8 {[%emt 0:00:01]} 30. Bxd6 Qxd6 31. Qe5 {[%emt 0:00:58]} Qg6 {[%emt 0:00:39]} 32. Bh5 {[%emt 0:01:36]} Qg7 {[%emt 0:00:53]} 33. Qxg7+ {[%emt 0:03:41]} Kxg7 {[%emt 0:00:04]} 34. Rxf7+ {[%emt 0:01:15]} Kg8 {[%emt 0:00:01]} 35. Rb7 {[%emt 0:01:50]} bxc4 {[%emt 0:00:20]} 36. dxc4 {[%emt 0:00:10]} Ra6 {[%emt 0:01:43]} 37. Bf3 {[%emt 0:00:50]} c5 {[%emt 0:00:51]} 38. Rc7 {[%emt 0:00:22]} Kf8 {[%emt 0:00:29]} 39. Rxc5 {[%emt 0:00:04]} Ke7 {[%emt 0:00:09]} 40. Rc7+ {[%emt 0:00:32]} Kd6 {[%emt 0:00:32]} 41. Rf7 {[%emt 0:00:54]} Kc5 {[%emt 0:00:11]} 42. Bd5 {[%emt 0:00:10]} Kd4 {[%emt 0:00:21]} 43. Kf3 {[%emt 0:03:02]} Kc3 {[%emt 0:00:22]} 44. Rb7 {[%emt 0:00:10]} Kd4 {[%emt 0:00:15]} 45. e3+ {[%emt 0:00:41]} Kc5 {[%emt 0:00:12]} 46. e4 {[%emt 0:00:17]} Kd6 {[%emt 0:00:56]} 47. Kf4 {[%emt 0:00:54]} Kc5 {[%emt 0:00:15]} 48. e5 {[%emt 0:00:36]} Rg6 {[%emt 0:01:26]} 49. e6 {[%emt 0:00:36]} Rg8 {[%emt 0:00:30]} 50. e7 {[%emt 0:00:37]} Rh8 {[%emt 0:00:46]} 51. Kf5 {[%emt 0:01:15]} Kd6 {[%emt 0:00:40]} 52. Kf6 {[%emt 0:00:52]} a4 {[%emt 0:00:32]} 53. Kf7 {[%emt 0:00:08]} Rh7+ {[%emt 0:00:02]} 54. Kg6 {[%emt 0:00:12]} Rxe7 {[%emt 0:00:21]} 55. Rxe7 {[%emt 0:00:03]} Kxe7 {[%emt 0:00:06]} 56. Kxh6 {[%emt 0:00:02]} Kf6 {[%emt 0:00:09]} 57. g4 {[%emt 0:00:01]} Ke7 {[%emt 0:00:13]} 58. g5 {[%emt 0:00:03]} Kf8 {[%emt 0:00:10]} 59. g6 {[%emt 0:00:22]} Ke7 {[%emt 0:00:13]} 60. g7 {[%emt 0:00:03]} 1-0

[Event "ESP-ch U1700 2024"]
[Site "Albacete"]
[Date "2024.08.27"]
[Round "1.2"]
[White "Garcia-Munoz Arias, Diego"]
[Black "Lamborena Valderrama, Garazi"]
[Result "1-0"]
[ECO "C55"]
[WhiteElo "1696"]
[BlackElo "1576"]
[Annotator "NA COMBH"]
[PlyCount "97"]
[EventDate "2024.08.27"]
[EventType "swiss"]
[EventCountry "ESP"]
[SourceTitle "playchess.com"]
[Source "ChessBase"]
[SourceQuality "1"]
[TimeControl "5400+30"]

1. e4 {[%emt 0:00:09]} e5 {[%emt 0:00:06]} 2. Nf3 {[%emt 0:00:12]} Nc6 {[%emt 0:00:28]} 3. d4 {[%emt 0:00:21]} exd4 {[%emt 0:00:22]} 4. Bc4 {[%emt 0:00:19]} Nf6 {[%emt 0:00:57]} 5. O-O {[%emt 0:00:19]} Bc5 {[%emt 0:05:28]} 6. e5 {[%emt 0:00:09]} d5 {[%emt 0:00:24]} 7. exf6 {[%emt 0:00:12]} dxc4 {[%emt 0:00:12]} 8. Re1+ {[%emt 0:00:06]} Be6 {[%emt 0:00:27]} 9. Ng5 {[%emt 0:00:41]} Qxf6 {[%emt 0:02:11]} 10. Nxe6 {[%emt 0:00:59]} fxe6 {[%emt 0:00:10]} 11. Qh5+ {[%emt 0:00:06]} Qf7 {[%emt 0:01:03]} 12. Qxc5 {[%emt 0:00:18]} e5 {[%emt 0:00:34]} 13. Na3 {[%emt 0:00:48]} Rf8 {[%emt 0:02:38]} 14. f3 {[%emt 0:00:55]} O-O-O {[%emt 0:04:18]} 15. Nxc4 {[%emt 0:00:39]} Rd5 {[%emt 0:02:21]} 16. Qa3 {[%emt 0:02:41]} Re8 {[%emt 0:13:30]} 17. Nd2 {[%emt 0:00:37]} Qf5 {[%emt 0:02:53]} 18. Ne4 {[%emt 0:00:48]} a6 {[%emt 0:01:19]} 19. Bd2 {[%emt 0:00:58]} Red8 {[%emt 0:01:11]} 20. Qd3 {[%emt 0:00:15]} Qd7 {[%emt 0:03:26]} 21. b4 {[%emt 0:02:38]} h6 {[%emt 0:02:40]} 22. a4 {[%emt 0:01:26]} Nb8 {[%emt 0:07:14]} 23. Reb1 {[%emt 0:02:17]} b6 {[%emt 0:01:16]} 24. a5 {[%emt 0:06:11]} b5 {[%emt 0:00:24]} 25. Nc5 {[%emt 0:00:47]} Qc6 {[%emt 0:00:40]} 26. Qf5+ {[%emt 0:01:10]} Nd7 {[%emt 0:01:08]} 27. c3 {[%emt 0:13:53]} e4 {[%emt 0:07:38]} 28. Qe6 {[%emt 0:06:31]} Rd6 {[%emt 0:00:34]} 29. Qxe4 {[%emt 0:00:31]} Nxc5 {[%emt 0:00:26]} 30. Qxc6 {[%emt 0:00:24]} Rxc6 {[%emt 0:00:10]} 31. bxc5 {[%emt 0:00:19]} dxc3 {[%emt 0:01:14]} 32. Bxc3 {[%emt 0:00:21]} g6 {[%emt 0:03:04]} 33. Bb4 {[%emt 0:01:47]} Rd4 {[%emt 0:02:00]} 34. Ra2 {[%emt 0:01:07]} Rc4 {[%emt 0:00:54]} 35. Bd2 {[%emt 0:01:34]} h5 {[%emt 0:02:24]} 36. Be3 {[%emt 0:00:26]} Re6 {[%emt 0:01:39]} 37. Bf2 {[%emt 0:01:51]} c6 {[%emt 0:00:27]} 38. h3 {[%emt 0:00:19]} Rf6 {[%emt 0:01:36]} 39. Rd1 {[%emt 0:01:08]} Kc7 {[%emt 0:02:44]} 40. Bg3+ {[%emt 0:01:19]} Kc8 {[%emt 0:00:21]} 41. Rd6 {[%emt 0:00:23]} Rxd6 {[%emt 0:00:44]} 42. Bxd6 {[%emt 0:00:08]} Kd7 {[%emt 0:00:52]} 43. Re2 {[%emt 0:00:12]} b4 {[%emt 0:01:48]} 44. Re7+ {[%emt 0:00:16]} Kc8 {[%emt 0:00:11]} 45. Rc7+ {[%emt 0:00:06]} Kd8 {[%emt 0:00:55]} 46. Rxc6 {[%emt 0:00:12]} b3 {[%emt 0:01:00]} 47. Rb6 {[%emt 0:00:09]} Ra4 {[%emt 0:01:01]} 48. c6 {[%emt 0:00:25]} Rxa5 {[%emt 0:01:09]} 49. Rb8# 1-0

[Event "ESP-ch U1700 2024"]
[Site "Albacete"]
[Date "2024.08.27"]
[Round "1.3"]
[White "Valdivia Khudiakova, Ekaterina"]
[Black "Carrilero Otalora, Vanesa"]
[Result "0-1"]
[ECO "D04"]
[WhiteElo "1573"]
[BlackElo "1692"]
[Annotator "NA RC COMBH"]
[PlyCount "104"]
[EventDate "2024.08.27"]
[EventType "swiss"]
[EventCountry "ESP"]
[SourceTitle "playchess.com"]
[Source "ChessBase"]
[SourceQuality "1"]
[TimeControl "5400+30"]

1. Nf3 {[%emt 0:00:04]} Nf6 {[%emt 0:00:24]} 2. d4 {[%emt 0:00:34]} d5 {[%emt 0:00:21]} 3. e3 {[%emt 0:00:22]} c5 {[%emt 0:01:08]} 4. c3 {[%emt 0:00:10]} Nbd7 {[%emt 0:05:40]} 5. Bd3 {[%emt 0:02:32]} e6 {[%emt 0:01:01]} 6. Nbd2 {[%emt 0:01:59]} Bd6 {[%emt 0:01:50]} 7. O-O {[%emt 0:03:13]} O-O {[%emt 0:00:39]} 8. Re1 {[%emt 0:00:36]} e5 {[%emt 0:10:44]} 9. e4 {[%emt 0:00:51]} cxd4 {[%emt 0:09:43]} 10. cxd4 {[%emt 0:00:33]} dxe4 {[%emt 0:01:36]} 11. Nxe4 {[%emt 0:01:42]} Nxe4 {[%emt 0:03:16]} 12. Bxe4 {[%emt 0:01:15]} exd4 {[%emt 0:07:46]} 13. Qxd4 {[%emt 0:01:18]} Bc5 {[%emt 0:02:51]} 14. Qc3 {[%emt 0:02:19]} Qb6 {[%emt 0:04:55]} 15. Qc2 {[%emt 0:01:12]} Nf6 {[%emt 0:02:54]} 16. Be3 {[%emt 0:02:57]} Bxe3 {[%emt 0:00:38]} 17. Rxe3 {[%emt 0:00:52]} h6 {[%emt 0:12:21]} 18. Nh4 {[%emt 0:05:08]} Be6 {[%emt 0:04:15]} 19. Nf5 {[%emt 0:02:19]} Nxe4 {[%emt 0:06:06]} 20. Qxe4 {[%emt 0:03:18]} Bxf5 {[%emt 0:02:04]} 21. Qxf5 {[%emt 0:00:10]} Qxb2 {[%emt 0:00:36]} 22. Ree1 {[%emt 0:01:29]} Rac8 {[%emt 0:01:38]} 23. Qa5 {[%emt 0:00:47]} Qd4 {[%emt 0:04:02]} 24. h3 {[%emt 0:00:31]} Rc2 {[%emt 0:01:05]} 25. Rf1 {[%emt 0:00:32]} Rxf2 {[%emt 0:00:47]} 26. Kh1 {[%emt 0:00:58]} Rxf1+ {[%emt 0:02:58]} 27. Rxf1 {[%emt 0:00:12]} Rc8 {[%emt 0:01:56]} 28. Qf5 {[%emt 0:00:49]} Qc4 {[%emt 0:00:36]} 29. Rf4 {[%emt 0:02:00]} Qe6 {[%emt 0:02:28]} 30. Qb1 {[%emt 0:00:42]} b6 {[%emt 0:01:22]} 31. Re4 {[%emt 0:01:39]} Qg6 {[%emt 0:01:37]} 32. Qe1 {[%emt 0:00:43]} Qc6 {[%emt 0:03:00]} 33. Qb1 {[%emt 0:00:57]} Qc1+ {[%emt 0:00:28]} 34. Qxc1 {[%emt 0:00:18]} Rxc1+ {[%emt 0:00:03]} 35. Kh2 {[%emt 0:00:07]} Ra1 {[%emt 0:00:39]} 36. Ra4 {[%emt 0:00:10]} a5 {[%emt 0:00:29]} 37. Kg3 {[%emt 0:00:43]} Re1 {[%emt 0:00:55]} 38. Kf2 {[%emt 0:00:14]} Re7 {[%emt 0:00:21]} 39. Rc4 {[%emt 0:00:45]} f6 {[%emt 0:02:14]} 40. a4 {[%emt 0:00:31]} Rb7 {[%emt 0:00:52]} 41. Rc2 {[%emt 0:01:22]} b5 {[%emt 0:01:04]} 42. Ke2 {[%emt 0:01:04]} bxa4 {[%emt 0:00:43]} 43. Ra2 {[%emt 0:00:08]} Rb4 {[%emt 0:00:37]} 44. Kd2 {[%emt 0:01:02]} Kf7 {[%emt 0:00:46]} 45. Rc2 {[%emt 0:00:19]} a3 {[%emt 0:00:30]} 46. Kc3 {[%emt 0:00:17]} Rb2 {[%emt 0:00:51]} 47. Rxb2 {[%emt 0:00:19]} axb2 {[%emt 0:00:04]} 48. Kxb2 {[%emt 0:00:05]} Ke6 {[%emt 0:00:04]} 49. Ka3 {[%emt 0:00:14]} Kf5 {[%emt 0:00:17]} 50. Ka4 {[%emt 0:00:20]} Kf4 {[%emt 0:00:09]} 51. Kxa5 {[%emt 0:00:14]} Kg3 {[%emt 0:00:10]} 52. Kb5 {[%emt 0:00:19]} Kxg2 {[%emt 0:00:15]} 0-1

[Event "ESP-ch U1700 2024"]
[Site "Albacete"]
[Date "2024.08.27"]
[Round "1.4"]
[White "Grande Gonzalez, Julen"]
[Black "Lamborena Perez, Gorka"]
[Result "1-0"]
[ECO "D06"]
[WhiteElo "1692"]
[BlackElo "1571"]
[Annotator "NA RC COMBH"]
[PlyCount "61"]
[EventDate "2024.08.27"]
[EventType "swiss"]
[EventCountry "ESP"]
[SourceTitle "playchess.com"]
[Source "ChessBase"]
[SourceQuality "1"]
[TimeControl "5400+30"]

1. d4 {[%emt 0:00:03]} d5 {[%emt 0:00:10]} 2. c4 {[%emt 0:00:05]} Nf6 {[%emt 0:00:08]} 3. cxd5 {[%emt 0:00:18]} Nxd5 {[%emt 0:00:32]} 4. e4 {[%emt 0:00:14]} Nb6 {[%emt 0:00:37]} 5. Nc3 {[%emt 0:01:14]} e6 {[%emt 0:02:00]} 6. Nf3 {[%emt 0:01:05]} Be7 {[%emt 0:03:29]} 7. Bd3 {[%emt 0:07:22]} c5 {[%emt 0:01:34]} 8. O-O cxd4 {[%emt 0:04:47]} 9. Nxd4 {[%emt 0:09:03]} Bf6 {[%emt 0:02:53]} 10. Be3 {[%emt 0:05:04]} e5 {[%emt 0:01:27]} 11. Bb5+ {[%emt 0:11:07]} Bd7 {[%emt 0:06:06]} 12. Nf5 {[%emt 0:03:05]} g6 {[%emt 0:03:15]} 13. Nd6+ {[%emt 0:01:53]} Kf8 {[%emt 0:03:28]} 14. Nxb7 {[%emt 0:05:05]} Qc7 {[%emt 0:03:43]} 15. Qd6+ {[%emt 0:04:06]} Qxd6 {[%emt 0:00:33]} 16. Nxd6 {[%emt 0:00:03]} Bxb5 {[%emt 0:01:52]} 17. Ndxb5 {[%emt 0:01:04]} Nc6 {[%emt 0:00:47]} 18. Nxa7 {[%emt 0:09:17]} Nd4 {[%emt 0:02:53]} 19. Bxd4 {[%emt 0:01:21]} exd4 {[%emt 0:00:43]} 20. Ncb5 {[%emt 0:00:09]} Kg7 {[%emt 0:01:00]} 21. Nc6 {[%emt 0:02:07]} Rhc8 {[%emt 0:01:42]} 22. Nbxd4 {[%emt 0:05:25]} Ra4 {[%emt 0:03:51]} 23. e5 {[%emt 0:02:21]} Bg5 {[%emt 0:01:27]} 24. f4 {[%emt 0:00:51]} Bxf4 {[%emt 0:02:03]} 25. Rxf4 {[%emt 0:02:12]} Rxc6 {[%emt 0:00:11]} 26. b3 {[%emt 0:01:01]} Rxd4 {[%emt 0:02:38]} 27. Rxd4 {[%emt 0:00:04]} Rc2 {[%emt 0:00:37]} 28. a4 {[%emt 0:00:50]} Re2 {[%emt 0:00:31]} 29. a5 {[%emt 0:00:36]} Nc8 {[%emt 0:00:29]} 30. a6 {[%emt 0:00:46]} Na7 {[%emt 0:01:11]} 31. Rd7 {[%emt 0:00:12]} 1-0

[Event "ESP-ch U1700 2024"]
[Site "Albacete"]
[Date "2024.08.27"]
[Round "1.5"]
[White "Yagues Garijo, Alvaro"]
[Black "Varela Cano, Hugo"]
[Result "1-0"]
[ECO "B40"]
[WhiteElo "1569"]
[BlackElo "1691"]
[Annotator "NA RC COMBH"]
[PlyCount "111"]
[EventDate "2024.08.27"]
[EventType "swiss"]
[EventCountry "ESP"]
[SourceTitle "playchess.com"]
[Source "ChessBase"]
[SourceQuality "1"]
[TimeControl "5400+30"]

1. e4 {[%emt 0:00:03]} c5 {[%emt 0:00:16]} 2. Nf3 {[%emt 0:00:09]} e6 {[%emt 0:00:29]} 3. c4 {[%emt 0:00:37]} d6 {[%emt 0:02:50]} 4. Nc3 {[%emt 0:01:00]} Nf6 {[%emt 0:02:29]} 5. d4 {[%emt 0:00:49]} cxd4 {[%emt 0:01:01]} 6. Nxd4 {[%emt 0:00:24]} Nc6 {[%emt 0:02:52]} 7. Be2 {[%emt 0:00:43]} Be7 {[%emt 0:03:05]} 8. Nxc6 {[%emt 0:01:07]} bxc6 {[%emt 0:00:16]} 9. Bf3 {[%emt 0:03:55]} Bb7 {[%emt 0:05:28]} 10. Qa4 {[%emt 0:00:42]} Qc7 {[%emt 0:03:20]} 11. Bf4 {[%emt 0:00:50]} O-O {[%emt 0:02:30]} 12. g4 {[%emt 0:03:03]} e5 {[%emt 0:06:31]} 13. Bg3 {[%emt 0:00:34]} Rac8 {[%emt 0:03:00]} 14. O-O {[%emt 0:01:12]} a6 {[%emt 0:03:02]} 15. g5 {[%emt 0:01:33]} Nd7 {[%emt 0:00:37]} 16. h4 {[%emt 0:01:55]} Nc5 {[%emt 0:07:51]} 17. Qc2 {[%emt 0:00:25]} Ne6 {[%emt 0:03:00]} 18. b3 {[%emt 0:06:35]} Nd4 {[%emt 0:02:23]} 19. Qd3 {[%emt 0:01:18]} Rfd8 {[%emt 0:06:26]} 20. Bg4 {[%emt 0:01:28]} Ne6 {[%emt 0:04:23]} 21. Rad1 {[%emt 0:03:24]} Kh8 {[%emt 0:10:29]} 22. f4 {[%emt 0:05:36]} exf4 {[%emt 0:08:10]} 23. Bxf4 {[%emt 0:00:30]} Rb8 {[%emt 0:04:31]} 24. Bxe6 {[%emt 0:00:29]} fxe6 {[%emt 0:00:17]} 25. Qh3 {[%emt 0:05:00]} e5 {[%emt 0:01:16]} 26. Be3 {[%emt 0:00:51]} Rf8 {[%emt 0:00:46]} 27. Na4 {[%emt 0:01:24]} c5 {[%emt 0:01:45]} 28. Nc3 {[%emt 0:02:49]} Bc6 {[%emt 0:01:02]} 29. Nd5 {[%emt 0:01:00]} Bxd5 {[%emt 0:01:20]} 30. Rxd5 {[%emt 0:00:59]} Rxf1+ {[%emt 0:00:47]} 31. Qxf1 {[%emt 0:01:01]} Rf8 {[%emt 0:00:15]} 32. Qd1 {[%emt 0:02:22]} Qd7 {[%emt 0:02:18]} 33. Kg2 {[%emt 0:02:05]} Qe6 {[%emt 0:01:32]} 34. Kg3 {[%emt 0:05:17]} h6 {[%emt 0:01:10]} 35. Qg4 {[%emt 0:01:19]} Qf7 {[%emt 0:01:46]} 36. Rd2 {[%emt 0:02:47]} h5 {[%emt 0:01:57]} 37. g6 {[%emt 0:01:44]} hxg4 {[%emt 0:01:29]} 38. gxf7 {[%emt 0:00:07]} Rxf7 {[%emt 0:00:13]} 39. Rf2 {[%emt 0:00:58]} Rf3+ {[%emt 0:01:23]} 40. Rxf3 {[%emt 0:00:49]} gxf3 {[%emt 0:00:05]} 41. Kxf3 {[%emt 0:00:04]} Bxh4 {[%emt 0:00:06]} 42. Kg4 {[%emt 0:01:34]} Be7 {[%emt 0:01:16]} 43. Kf5 {[%emt 0:01:30]} Kg8 {[%emt 0:00:54]} 44. Bd2 {[%emt 0:00:34]} Kf7 {[%emt 0:00:21]} 45. Be1 {[%emt 0:00:30]} g6+ {[%emt 0:00:16]} 46. Kg4 {[%emt 0:00:06]} Kg7 {[%emt 0:00:57]} 47. Bd2 {[%emt 0:00:55]} Kf7 {[%emt 0:01:39]} 48. Be1 {[%emt 0:02:34]} Kf6 {[%emt 0:01:41]} 49. Bh4+ {[%emt 0:00:30]} Kf7 {[%emt 0:00:16]} 50. Be1 {[%emt 0:00:06]} Ke8 {[%emt 0:01:10]} 51. Bc3 {[%emt 0:03:09]} Kd7 {[%emt 0:00:37]} 52. Bd2 {[%emt 0:01:27]} Kc6 {[%emt 0:00:56]} 53. Ba5 {[%emt 0:01:02]} d5 54. exd5+ Kd6 55. Bd2 e4 56. Be3 1-0

[Event "ESP-ch U1700 2024"]
[Site "Albacete"]
[Date "2024.08.27"]
[Round "1.6"]
[White "Garcia Sahuquillo, Marcos Antonio"]
[Black "Garcia Palencia, Gabriel"]
[Result "1-0"]
[ECO "A40"]
[WhiteElo "1690"]
[BlackElo "1568"]
[Annotator "NA RC COMBH"]
[PlyCount "77"]
[EventDate "2024.08.27"]
[EventType "swiss"]
[EventCountry "ESP"]
[SourceTitle "playchess.com"]
[Source "ChessBase"]
[SourceQuality "1"]
[TimeControl "5400+30"]

1. d4 {[%emt 0:00:02]} e6 {[%emt 0:07:28]} 2. Nf3 {[%emt 0:00:36]} Nf6 {[%emt 0:00:42]} 3. g3 {[%emt 0:00:14]} d5 {[%emt 0:00:37]} 4. Bg2 {[%emt 0:00:24]} c5 {[%emt 0:00:15]} 5. c4 {[%emt 0:01:32]} Nc6 {[%emt 0:01:20]} 6. cxd5 {[%emt 0:00:18]} exd5 {[%emt 0:00:39]} 7. O-O {[%emt 0:00:22]} Qb6 {[%emt 0:01:26]} 8. e3 {[%emt 0:01:50]} Bg4 {[%emt 0:00:49]} 9. Qa4 {[%emt 0:01:06]} Qb4 {[%emt 0:01:43]} 10. Nc3 {[%emt 0:03:07]} Qxa4 {[%emt 0:02:49]} 11. Nxa4 {[%emt 0:00:07]} Bxf3 {[%emt 0:00:10]} 12. Bxf3 {[%emt 0:00:06]} cxd4 {[%emt 0:00:11]} 13. exd4 {[%emt 0:00:20]} Nxd4 {[%emt 0:00:27]} 14. Bd1 {[%emt 0:02:47]} Bb4 {[%emt 0:04:52]} 15. a3 {[%emt 0:01:07]} Be7 {[%emt 0:01:22]} 16. Re1 {[%emt 0:00:50]} Ne6 {[%emt 0:00:57]} 17. Nc3 {[%emt 0:00:54]} d4 {[%emt 0:03:07]} 18. Ba4+ {[%emt 0:00:28]} Kf8 {[%emt 0:02:10]} 19. Ne4 {[%emt 0:00:56]} a6 {[%emt 0:01:09]} 20. Bb3 {[%emt 0:02:08]} Nc5 {[%emt 0:02:18]} 21. Nxc5 {[%emt 0:00:55]} Bxc5 {[%emt 0:00:12]} 22. Bg5 {[%emt 0:00:53]} Nd7 {[%emt 0:01:07]} 23. Bd5 {[%emt 0:01:31]} h6 {[%emt 0:01:03]} 24. Bf4 {[%emt 0:01:06]} g5 {[%emt 0:02:43]} 25. Bd2 {[%emt 0:02:21]} Rb8 {[%emt 0:03:32]} 26. Rac1 {[%emt 0:03:44]} b5 {[%emt 0:02:07]} 27. Bc6 {[%emt 0:00:41]} Nb6 {[%emt 0:03:02]} 28. Rxc5 {[%emt 0:00:32]} Na4 {[%emt 0:00:22]} 29. Rd5 {[%emt 0:03:25]} Rc8 {[%emt 0:01:33]} 30. Bb7 {[%emt 0:00:45]} Rc2 {[%emt 0:00:03]} 31. Bb4+ {[%emt 0:01:11]} Kg7 {[%emt 0:00:30]} 32. Rxd4 {[%emt 0:00:19]} Nxb2 {[%emt 0:00:47]} 33. Rd2 {[%emt 0:02:48]} Rxd2 {[%emt 0:01:15]} 34. Bxd2 {[%emt 0:00:07]} Nc4 {[%emt 0:00:37]} 35. Bc3+ {[%emt 0:00:15]} f6 {[%emt 0:00:25]} 36. Bxa6 {[%emt 0:00:41]} Nxa3 {[%emt 0:00:56]} 37. Re7+ {[%emt 0:00:34]} Kg6 {[%emt 0:00:16]} 38. Re6 {[%emt 0:04:15]} Nb1 {[%emt 0:01:46]} 39. Bb2 {[%emt 0:01:53]} 1-0

[Event "ESP-ch U1700 2024"]
[Site "Albacete"]
[Date "2024.08.27"]
[Round "1.7"]
[White "Ortega Moya, Juan Francisco"]
[Black "Saiz Alonso de Armino, Daniel"]
[Result "0-1"]
[ECO "A40"]
[WhiteElo "1567"]
[BlackElo "1689"]
[Annotator "NA RC COMBH"]
[PlyCount "81"]
[EventDate "2024.08.27"]
[EventType "swiss"]
[EventCountry "ESP"]
[SourceTitle "playchess.com"]
[Source "ChessBase"]
[SourceQuality "1"]
[TimeControl "5400+30"]

1. d4 {[%emt 0:00:30]} e6 {[%emt 0:00:39]} 2. Bf4 {[%emt 0:07:45]} d5 {[%emt 0:00:09]} 3. e3 {[%emt 0:01:10]} Nf6 {[%emt 0:00:06]} 4. Bd3 {[%emt 0:02:02]} c5 {[%emt 0:00:15]} 5. c3 {[%emt 0:00:21]} Bd6 {[%emt 0:00:08]} 6. Bg3 {[%emt 0:02:15]} Qc7 {[%emt 0:00:24]} 7. Bxd6 {[%emt 0:03:12]} Qxd6 {[%emt 0:00:36]} 8. dxc5 {[%emt 0:01:41]} Qxc5 {[%emt 0:00:56]} 9. Nf3 {[%emt 0:01:30]} Nbd7 {[%emt 0:00:45]} 10. Nbd2 {[%emt 0:01:35]} e5 {[%emt 0:01:25]} 11. Nb3 {[%emt 0:02:39]} Qc7 {[%emt 0:00:44]} 12. Nfd2 {[%emt 0:04:17]} O-O {[%emt 0:01:24]} 13. e4 {[%emt 0:01:40]} b6 {[%emt 0:00:56]} 14. Qf3 {[%emt 0:04:42]} Bb7 {[%emt 0:00:40]} 15. O-O {[%emt 0:09:10]} a5 {[%emt 0:02:31]} 16. a4 {[%emt 0:01:25]} Rad8 {[%emt 0:03:36]} 17. Rad1 {[%emt 0:02:47]} Rfe8 {[%emt 0:01:36]} 18. Rfe1 {[%emt 0:00:57]} Nf8 {[%emt 0:00:51]} 19. Bb5 {[%emt 0:02:43]} Re7 {[%emt 0:03:17]} 20. Qe2 {[%emt 0:02:00]} dxe4 {[%emt 0:01:11]} 21. Nf1 {[%emt 0:08:54]} Ng6 {[%emt 0:01:12]} 22. Rd2 {[%emt 0:07:21]} Nf4 {[%emt 0:00:43]} 23. Qd1 {[%emt 0:08:59]} Rxd2 {[%emt 0:01:10]} 24. Qxd2 {[%emt 0:02:20]} Bc6 {[%emt 0:02:14]} 25. Bxc6 {[%emt 0:01:02]} Qxc6 {[%emt 0:00:27]} 26. Qd8+ {[%emt 0:00:30]} Re8 {[%emt 0:00:09]} 27. Qd2 {[%emt 0:02:06]} Nd3 {[%emt 0:00:56]} 28. Rd1 {[%emt 0:05:28]} Rd8 {[%emt 0:01:27]} 29. Nc1 {[%emt 0:00:58]} Qxa4 {[%emt 0:00:55]} 30. Ne3 {[%emt 0:04:04]} Rd7 {[%emt 0:00:58]} 31. b3 {[%emt 0:04:44]} Qc6 {[%emt 0:01:49]} 32. Nf5 {[%emt 0:02:54]} Nb2 {[%emt 0:03:22]} 33. Qxd7 {[%emt 0:01:11]} Nxd7 {[%emt 0:01:47]} 34. Ne7+ {[%emt 0:00:19]} Kf8 {[%emt 0:00:16]} 35. Nxc6 {[%emt 0:00:22]} Nxd1 {[%emt 0:00:09]} 36. Na2 {[%emt 0:01:13]} f6 {[%emt 0:00:43]} 37. Kf1 {[%emt 0:00:21]} Nc5 {[%emt 0:00:30]} 38. Ke2 {[%emt 0:01:12]} Nb2 39. Kd2 Nxb3+ 40. Kc2 Nd3 41. Kxb3 0-1

[Event "ESP-ch U1700 2024"]
[Site "Albacete"]
[Date "2024.08.27"]
[Round "1.8"]
[White "Romero Brotons, Francisco"]
[Black "Fuster Blesa, Ferran"]
[Result "0-1"]
[ECO "C55"]
[WhiteElo "1687"]
[BlackElo "1566"]
[Annotator "NA RC COMBH"]
[PlyCount "56"]
[EventDate "2024.08.27"]
[EventType "swiss"]
[EventCountry "ESP"]
[SourceTitle "playchess.com"]
[Source "ChessBase"]
[SourceQuality "1"]
[TimeControl "5400+30"]

1. e4 {[%emt 0:00:01]} e5 {[%emt 0:00:49]} 2. Nf3 {[%emt 0:00:10]} Nc6 {[%emt 0:00:53]} 3. Bc4 {[%emt 0:00:18]} Nf6 4. O-O Bc5 {[%emt 0:01:29]} 5. Re1 {[%emt 0:01:36]} d6 {[%emt 0:00:29]} 6. h3 {[%emt 0:00:35]} Bd7 {[%emt 0:02:06]} 7. c3 {[%emt 0:00:46]} Qc8 {[%emt 0:00:46]} 8. Kh2 {[%emt 0:06:28]} Bxf2 {[%emt 0:00:26]} 9. Re2 {[%emt 0:00:47]} Bb6 {[%emt 0:01:08]} 10. d4 {[%emt 0:00:29]} Na5 {[%emt 0:01:34]} 11. dxe5 {[%emt 0:05:01]} Nxc4 {[%emt 0:01:41]} 12. exf6 {[%emt 0:00:24]} gxf6 {[%emt 0:00:49]} 13. Bh6 {[%emt 0:02:17]} Bb5 {[%emt 0:03:34]} 14. Nd4 {[%emt 0:03:32]} Bxd4 {[%emt 0:02:28]} 15. Qxd4 {[%emt 0:01:28]} Ne5 {[%emt 0:01:10]} 16. Rf2 {[%emt 0:02:09]} Qe6 {[%emt 0:00:46]} 17. Bg7 {[%emt 0:00:40]} Rg8 {[%emt 0:01:26]} 18. Bxf6 {[%emt 0:01:24]} Rg6 {[%emt 0:02:46]} 19. Bh4 {[%emt 0:02:42]} Rh6 {[%emt 0:02:08]} 20. Bg3 {[%emt 0:04:49]} Ng4+ {[%emt 0:00:29]} 21. Kg1 {[%emt 0:01:01]} Nxf2 {[%emt 0:00:54]} 22. Qh8+ {[%emt 0:00:45]} Ke7 {[%emt 0:01:15]} 23. Qxa8 {[%emt 0:00:18]} Qc4 {[%emt 0:03:31]} 24. Na3 {[%emt 0:01:08]} Nxh3+ {[%emt 0:01:44]} 25. gxh3 {[%emt 0:00:47]} Qd3 {[%emt 0:01:12]} 26. Nxb5 {[%emt 0:03:35]} Qxg3+ {[%emt 0:01:05]} 27. Kf1 {[%emt 0:00:19]} Rf6+ {[%emt 0:00:20]} 28. Ke2 {[%emt 0:00:22]} Rf2+ {[%emt 0:00:15]} 0-1